[Event "1st Kallai Gabor Memorial Blitz 2022"]
[Site "Budapest"]
[Date "2022.12.01"]
[Round "6.5"]
[White "Borhy, Marcell"]
[Black "Berkes, Ferenc"]
[Result "1/2-1/2"]
[ECO "D15"]
[WhiteElo "2407"]
[BlackElo "2643"]
[Annotator "TA"]
[PlyCount "52"]
[EventDate "2022.12.01"]
[EventType "blitz"]
[EventCountry "HUN"]
[SourceTitle "playchess.com"]
[Source "ChessBase"]
[SourceQuality "1"]
[TimeControl "300+3"]

{[%evp 23,52,10,24,26,27,27,35,41,38,9,17,5,29,9,20,20,14,12,9,6,0,0,0,0,0,0,37,14,68,67,86]} 1. Nf3 {[%emt 0:00:04]} d5 {[%emt 0:00:05]} 2. d4 {[%emt 0:00:02]} c6 {[%emt 0:00:03]} 3. c4 {[%emt 0:00:02]} Nf6 {[%emt 0:00:01]} 4. Nc3 {[%emt 0:00:02]} a6 {[%emt 0:00:02]} 5. cxd5 {[%emt 0:00:10]} cxd5 {[%emt 0:00:01]} 6. Bf4 {[%emt 0:00:01]} Nc6 {[%emt 0:00:01]} 7. Rc1 e6 {[%emt 0:00:39]} 8. e3 {[%emt 0:00:05]} Bd6 {[%emt 0:00:02]} 9. Bg3 {[%emt 0:00:05]} O-O {[%emt 0:00:07]} 10. Bd3 {[%emt 0:00:02]} Bxg3 {[%emt 0:00:14]} 11. hxg3 {[%emt 0:00:02]} h6 {[%emt 0:00:01]} 12. O-O {[%emt 0:00:05]} Qd6 {[%emt 0:00:10]} 13. Na4 {[%emt 0:00:15] [#] D13: Slav Defence: Exchange variation without ...Bf5.} Bd7 $146 {[%emt 0:00:22]} ({Predecessor:} 13... Rb8 14. Bb1 Bd7 15. Nc5 Rfc8 16. a3 Be8 17. Qd3 Ne7 18. g4 Bb5 19. Qd2 Bxf1 20. Rxf1 Nxg4 21. Qd3 Nf6 22. Ne5 Rxc5 {0-1 (22) Vaishali,R (2405)-Indjic,A (2612) Chess.com INT 2021}) 14. Nc5 {[%emt 0:00:30]} Rab8 {[%emt 0:00:01]} 15. a3 {[%emt 0:00:58]} Rfc8 {[%emt 0:00:02]} 16. b4 {[%emt 0:00:01]} Be8 17. Qb3 {[%emt 0:00:13]} Rc7 {[%emt 0:00:08]} 18. Qb2 {[%emt 0:00:46]} Na7 {[%emt 0:00:33]} 19. a4 {[%emt 0:00:33]} Nc8 {[%emt 0:00:52]} 20. a5 {[%emt 0:00:35]} Na7 {[%emt 0:00:07]} 21. Rc2 {[%emt 0:00:12]} Bb5 {[%emt 0:00:01]} 22. Rfc1 {[%emt 0:00:02]} Bxd3 {[%emt 0:00:04]} 23. Nxd3 {[%emt 0:00:01]} Rxc2 {[%emt 0:00:05]} 24. Rxc2 {[%emt 0:00:16]} b6 {[%emt 0:00:14]} 25. axb6 {[%emt 0:00:01]} Qxb6 {[%emt 0:00:03]} (25... Rxb6 $11 26. Qa3 Ng4) 26. Nfe5 $1 $14 {[%emt 0:00:10]} Rc8 {[%emt 0:00:43] Weighted Error Value: White=0.05 (flawless) /Black=0.12 (very precise)} 1/2-1/2

[Event "1st Kallai Gabor Memorial Blitz 2022"]
[Site "Budapest"]
[Date "2022.12.01"]
[Round "7.1"]
[White "Kozak, Adam"]
[Black "Beliavsky, Alexander G"]
[Result "1/2-1/2"]
[ECO "E49"]
[WhiteElo "2538"]
[BlackElo "2487"]
[Annotator "TA"]
[PlyCount "129"]
[EventDate "2022.12.01"]
[EventType "blitz"]
[EventCountry "HUN"]
[SourceTitle "playchess.com"]
[Source "ChessBase"]
[SourceQuality "1"]
[TimeControl "300+3"]

{[%evp 13,129,9,24,6,8,8,6,5,23,9,24,7,0,8,7,0,0,8,18,8,22,12,19,0,11,-23,-6,-109,-90,-102,-60,-84,-52,-101,-72,-56,-58,-66,-61,-71,-58,-59,-66,-63,-58,-56,-25,-28,-37,-37,-39,-54,0,0,37,0,0,8,37,8,44,0,0,0,0,0,0,0,0,0,0,0,0,0,0,0,0,-16,-16,-62,0,-8,0,-105,-8,-8,-8,-89,0,0,0,0,0,0,0,0,0,0,0,0,0,0,0,0,0,0,0,0,0,0,0,0,0,0,0,0,0,0]} 1. d4 {[%emt 0:00:12]} Nf6 {[%emt 0:00:04]} 2. c4 {[%emt 0:00:01]} e6 {[%emt 0:00:01]} 3. Nc3 {[%emt 0:00:01]} Bb4 {[%emt 0:00:02]} 4. e3 {[%emt 0:00:01]} O-O {[%emt 0:00:19]} 5. Bd3 {[%emt 0:00:02]} d5 {[%emt 0:00:01]} 6. a3 {[%emt 0:00:03]} Bxc3+ {[%emt 0:00:08]} 7. bxc3 {[%emt 0:00:01]} c6 {[%emt 0:00:02][%cal Oe6e5]} 8. Nf3 {[%emt 0:00:27] is the legacy move (8.Ne2). E49: Nimzo-Indian: Rubinstein: 5 Bd3 d5 6 a3 Bxc3+ 7 bxc3.} b6 {[%emt 0:00:01]} 9. cxd5 {[%emt 0:01:23]} cxd5 {[%emt 0:00:02]} 10. Qe2 {[%emt 0:00:03]} Bb7 {[%emt 0:00:26]} 11. O-O {[%emt 0:00:09]} Qc8 {[%emt 0:00:02]} 12. c4 {[%emt 0:00:15]} dxc4 {[%emt 0:00:07]} 13. Bxc4 {[%emt 0:00:03]} Ba6 {[%emt 0:00:01] [#] Prevents a4.} 14. Bb5 $146 {[%emt 0:00:40]} ({Predecessor:} 14. Bxa6 Qxa6 15. Qxa6 Nxa6 16. Bb2 Rac8 17. Rfc1 Ne4 18. Kf1 f6 19. Ke2 Kf7 20. Ne1 {½-½ (63) Bluvshtein,M (2611)-Rozentalis,E (2571) Toronto 2011}) 14... Bxb5 {[%emt 0:00:11]} 15. Qxb5 {[%emt 0:00:01]} Qc6 {[%emt 0:00:46]} 16. a4 {[%emt 0:00:06]} a6 17. Qb3 {[%emt 0:00:29]} (17. Qxc6 {simplifies} Nxc6 18. Rb1 Nd5 19. Bd2) 17... Nbd7 {[%emt 0:00:03]} 18. Ba3 {[%emt 0:00:04] Threatens to win with Rfc1.} Rfc8 {[%emt 0:00:01]} 19. Rab1 {[%emt 0:00:22]} Qc4 {[%emt 0:00:21]} 20. Bd6 {[%emt 0:00:48]} (20. Qxc4 $11 {keeps the balance.} Rxc4 21. a5 bxa5 22. Rfc1 Rxc1+ 23. Rxc1) 20... Qxb3 $17 {[%emt 0:00:09]} 21. Rxb3 {[%emt 0:00:01]} Rc4 {[%emt 0:00:03]} 22. Ra1 {[%emt 0:00:21]} Ne4 {[%emt 0:00:25]} 23. Bg3 {[%emt 0:00:07]} (23. Bb4 $15) 23... f6 {[%emt 0:00:02]} 24. Ne1 {[%emt 0:00:12][%cal Bf3e1,Be1d3,Bd3f4,Bf4e2,Be2c3][%mdl 32]} Rac8 {[%emt 0:00:10]} 25. Nd3 {[%emt 0:00:05]} Rc3 {[%emt 0:00:55]} 26. Rxc3 {[%emt 0:00:01]} Rxc3 {[%emt 0:00:01]} 27. Nf4 {[%emt 0:00:01]} Kf7 {[%emt 0:00:04]} 28. Kf1 {[%emt 0:00:09]} g5 {[%emt 0:00:12]} 29. Ne2 {[%emt 0:00:02]} Rc4 {[%emt 0:00:19]} 30. f3 {[%emt 0:00:11]} Nxg3+ {[%emt 0:00:07]} 31. hxg3 $11 {[%emt 0:00:03][%mdl 4096] Endgame KRN-KRN} h5 {[%emt 0:00:11]} 32. Ke1 {[%emt 0:00:01]} Ke7 {[%emt 0:00:01]} (32... Rc2 $15) 33. Kd2 Kd6 34. Nc3 {[%emt 0:00:06]} (34. Kd3 $5 {[%cal Rd3c4]} Rc8 35. Rh1 $14) 34... f5 {[%emt 0:00:20]} 35. Rb1 {[%emt 0:00:02]} Rc8 {[%emt 0:00:07]} 36. Kd3 {[%emt 0:00:03]} Rh8 {[%emt 0:00:03]} 37. Na2 {[%emt 0:00:05]} h4 {[%emt 0:00:10]} 38. Rh1 {[%emt 0:00:05]} Rg8 {[%emt 0:00:07]} 39. gxh4 {[%emt 0:00:07]} gxh4 {[%emt 0:00:00]} 40. Rh2 {[%emt 0:00:01]} Nf6 {[%emt 0:00:26]} 41. Nb4 {[%emt 0:00:07]} Nd5 {[%emt 0:00:09]} 42. Nxd5 {[%emt 0:00:02]} Kxd5 {[%emt 0:00:05] KR-KR} 43. e4+ {[%emt 0:00:03]} fxe4+ {[%emt 0:00:01]} 44. fxe4+ {[%emt 0:00:01]} Kd6 {[%emt 0:00:01]} 45. Kc4 {[%emt 0:00:05]} Rg4 {[%emt 0:00:05]} 46. Kd3 {[%emt 0:00:01]} Rg3+ {[%emt 0:00:02]} (46... e5 $1 $15) 47. Kc4 {[%emt 0:00:05]} Rg4 {[%emt 0:00:03]} (47... b5+ $11 48. axb5 axb5+ 49. Kxb5 Rg4) 48. Kd3 $1 $17 {[%emt 0:00:04] [#]} b5 {[%emt 0:00:00]} (48... e5 $1 $17 49. Rh3 b5) 49. axb5 $11 {[%emt 0:00:02]} axb5 {[%emt 0:00:01]} 50. Ke3 {[%emt 0:00:01] [#]} (50. Rh1 $1 $11) 50... b4 {[%emt 0:00:11]} ({Black should play} 50... e5 $1 $17) 51. Kf3 $1 {[%emt 0:00:07] The position is equal.} Rg3+ {[%emt 0:00:02]} 52. Kf2 {[%emt 0:00:03]} Rd3 {[%emt 0:00:10] aiming for ...b3.} 53. Rxh4 {[%emt 0:00:03]} Rxd4 {Hoping for ...b3.} 54. Ke3 {[%emt 0:00:01] Inhibits b3. Threatening mate with e5+.} Rc4 {[%emt 0:00:07]} 55. Rh8 {[%emt 0:00:03]} Rc3+ {[%emt 0:00:03]} 56. Kf4 {[%emt 0:00:04]} Kc7 {[%emt 0:00:04]} 57. Rh1 {[%emt 0:00:04]} b3 {[%emt 0:00:03]} 58. Ke5 {[%emt 0:00:01]} Rc6 {[%emt 0:00:02]} (58... b2 $5 59. Rb1 $8 Rc2 $11) 59. Rb1 {[%emt 0:00:02]} Rb6 {[%emt 0:00:00]} 60. Kd4 {[%emt 0:00:00]} Kd6 {[%emt 0:00:04]} 61. Kc3 {[%emt 0:00:08]} Ke5 {[%emt 0:00:02]} 62. Rxb3 {[%emt 0:00:02]} Rxb3+ {[%emt 0:00:01]} 63. Kxb3 {[%emt 0:00:01]} Kxe4 64. Kc2 {[%emt 0:00:01]} Kf4 {[%emt 0:00:03]} 65. Kd3 {[%emt 0:00:01] Weighted Error Value: White=0.11 (very precise) /Black=0.13 (very precise)} 1/2-1/2

[Event "1st Kallai Gabor Memorial Blitz 2022"]
[Site "Budapest"]
[Date "2022.12.01"]
[Round "7.2"]
[White "Berkes, Ferenc"]
[Black "Horvath, Csaba"]
[Result "1-0"]
[ECO "A57"]
[WhiteElo "2643"]
[BlackElo "2502"]
[Annotator "TA"]
[PlyCount "73"]
[EventDate "2022.12.01"]
[EventType "blitz"]
[EventCountry "HUN"]
[SourceTitle "playchess.com"]
[Source "ChessBase"]
[SourceQuality "1"]
[TimeControl "300+3"]

{[%evp 11,73,11,15,30,46,55,52,43,72,47,54,44,46,51,52,-5,75,0,0,0,95,104,139,128,191,184,181,193,184,165,191,193,184,198,232,222,250,229,338,295,462,441,484,471,663,411,374,336,592,595,1118,1118,1110,1094,776,772,29978,29978,29977,29976,6125,912,29993,29994]} 1. d4 {[%emt 0:00:04]} Nf6 {[%emt 0:00:04]} 2. c4 c5 3. d5 {[%emt 0:00:04]} b5 {[%emt 0:00:02]} 4. cxb5 {[%emt 0:00:02]} a6 {[%emt 0:00:01]} 5. e3 {[%emt 0:00:03]} e6 {[%emt 0:00:02]} 6. Nc3 {[%emt 0:00:13]} exd5 {[%emt 0:00:01]} 7. Nh3 $5 {[%emt 0:00:15][%cal Bg1h3,Bh3f4,Bf4d5][%mdl 4] Leaves trodden paths. A57: Benko/Volga Gambit.} Bb7 {[%emt 0:00:10]} 8. Nf4 {[%emt 0:00:01][%cal Rf4d5]} Bd6 {[%emt 0:00:19] [#] Strongly threatening ...Bxf4.} 9. Nfxd5 $146 {[%emt 0:00:05] White is slightly better.} (9. Ncxd5 axb5 10. Nxf6+ Qxf6 $11) ({Predecessor:} 9. Ncxd5 Nxd5 10. Nxd5 axb5 11. g3 O-O 12. Bg2 Na6 13. O-O Bc6 14. b3 Be5 15. Rb1 {½-½ (48) Klukin,K (2346)-Remecki,S (2322) Novi Sad 2021}) 9... O-O {[%emt 0:00:26]} 10. bxa6 {[%emt 0:00:44]} (10. Bc4 $5 {[%cal Rd5f6]}) 10... Nxa6 {[%emt 0:00:03]} 11. Bc4 {[%emt 0:00:02]} Be5 {[%emt 0:00:35]} 12. O-O {[%emt 0:00:06]} Nc7 {[%emt 0:00:22]} 13. e4 {[%emt 0:00:43]} ({White should try} 13. a4 $14) 13... Bxc3 {[%emt 0:00:19]} (13... Nfxd5 $11 {remains equal.} 14. Bxd5 Nxd5 15. Nxd5 d6) 14. bxc3 {[%emt 0:00:20]} (14. Nxc3 $16 {And now Bg5 would win.} Nxe4 15. Nxe4 Bxe4 16. Qd6) 14... Nxe4 $11 {[%emt 0:00:04] ...Bxd5 is the strong threat.} 15. Nb6 {[%emt 0:00:06][%csl LRa8,LRd7]} d5 {[%emt 0:00:20]} 16. Nxa8 $16 {[%emt 0:00:06] White stays focused until the end.} Qxa8 {[%emt 0:00:05]} 17. Bd3 {[%emt 0:00:10]} Nxc3 {[%emt 0:00:07] [#]} (17... Ba6 $16) 18. Qh5 $1 $18 {[%emt 0:00:09][%csl Gd3][%cal Rh5h7]} Ne4 {[%emt 0:00:59]} 19. Bxe4 {[%emt 0:00:03]} dxe4 {[%emt 0:00:01]} 20. Be3 {[%emt 0:00:04]} Ne6 {[%emt 0:00:07]} 21. Qe5 {[%emt 0:00:15] Against f5} (21. Bxc5 Qa5 $11) 21... Re8 {[%emt 0:00:23]} 22. Rfd1 {[%emt 0:00:18]} (22. Bxc5 $6 Nxc5 23. Qxc5 e3 $16) 22... f6 {[%emt 0:00:19]} 23. Qc3 {[%emt 0:00:03]} f5 24. g3 {[%emt 0:01:09][%cal Bg2g3,Bg3f4][%mdl 32] Inhibits f4.} (24. Bxc5 $6 e3 $16) 24... f4 {[%emt 0:00:41]} (24... Bc8 $142 25. Rd6 (25. Bxc5 Ng5 $16) 25... Qa7) 25. gxf4 {[%emt 0:00:01]} ({Stronger than} 25. Bxc5 e3 26. fxe3 Qa4 $15) (25. Bxf4 Nxf4 26. gxf4 Qc8 $18) 25... Nd4 {[%emt 0:00:04]} (25... Bc8 $142 26. Rd6 (26. Bxc5 Nxf4 27. Qa3 Nh3+ 28. Kg2 Qc6 $14) 26... Qb8) 26. Qxc5 {[%emt 0:00:15]} Nf3+ {[%emt 0:00:03]} 27. Kh1 {[%emt 0:00:02]} Qa6 {[%emt 0:00:04]} (27... Qc8 $142 28. Qxc8 Bxc8) 28. Qh5 {[%emt 0:00:31][%cal Rh5e8]} g6 {[%emt 0:00:07]} 29. Qc5 {[%emt 0:00:06] Black must now prevent Rd6.} Qf6 {[%emt 0:00:04]} (29... Qe6 {keeps fighting.}) 30. Qc4+ {[%emt 0:00:04]} Kg7 {[%emt 0:00:14]} 31. Rd7+ {[%emt 0:00:07]} Re7 {[%emt 0:00:08]} 32. Rxe7+ {[%emt 0:00:20]} Qxe7 {[%emt 0:00:02]} 33. Rc1 {[%emt 0:00:06] aiming for Qc7.} Qh4 {[%emt 0:00:03]} 34. Qc7+ {[%emt 0:00:00]} Kh6 {[%emt 0:00:01]} 35. f5+ {[%emt 0:00:01]} (35. Qxb7 $2 Qxh2#) 35... g5 {[%emt 0:00:15]} 36. Qg3 {[%emt 0:00:01]} (36. Qxb7 $2 Qxh2#) (36. Rd1 $142 Qxh2+ 37. Qxh2+ Nxh2 38. Kxh2) 36... Qh5 {[%emt 0:00:11]} 37. Qd6+ {[%emt 0:00:01] Weighted Error Value: White=0.22 (precise) /Black=0.62} 1-0

[Event "1st Kallai Gabor Memorial Blitz 2022"]
[Site "Budapest"]
[Date "2022.12.01"]
[Round "7.3"]
[White "Ruck, Robert"]
[Black "Troff, Kayden"]
[Result "1/2-1/2"]
[ECO "A05"]
[WhiteElo "2537"]
[BlackElo "2483"]
[Annotator "TA"]
[PlyCount "66"]
[EventDate "2022.12.01"]
[EventType "blitz"]
[EventCountry "HUN"]
[SourceTitle "playchess.com"]
[Source "ChessBase"]
[SourceQuality "1"]
[TimeControl "300+3"]

{[%evp 19,66,0,14,0,11,0,0,-12,30,12,11,0,54,49,43,23,39,49,82,12,4,3,9,17,12,8,12,0,0,-2,0,0,18,33,29,14,12,7,12,2,2,0,12,8,27,13,29,0,0]} 1. Nf3 {[%emt 0:00:04]} Nf6 {[%emt 0:00:04]} 2. c4 {[%emt 0:00:01]} g6 {[%emt 0:00:01]} 3. Nc3 {[%emt 0:00:01]} Bg7 {[%emt 0:00:02]} 4. g3 {[%emt 0:00:01]} d5 {[%emt 0:00:02]} 5. cxd5 {[%emt 0:00:04]} Nxd5 {[%emt 0:00:02]} 6. Bg2 {[%emt 0:00:01]} O-O {[%emt 0:00:04]} 7. O-O {[%emt 0:00:05]} e5 {[%emt 0:00:03]} 8. d4 {[%emt 0:01:25]} exd4 {[%emt 0:00:59]} 9. Nxd4 {[%emt 0:00:02]} Nxc3 {[%emt 0:00:04]} 10. bxc3 {[%emt 0:00:01]} c6 {[%emt 0:00:01]} 11. Rb1 {[%emt 0:00:07] A16: English Opening: 1...Nf6 with ...d5.} Nd7 {[%emt 0:00:04] [#]} 12. Ba3 $146 {[%emt 0:00:14][%cal Bc1a3,Ba3c5,Bc5d4][%mdl 32]} ({Predecessor:} 12. Qc2 Qe7 13. e4 Nb6 14. Bb2 Nc4 15. Rfe1 c5 16. Ne2 Nxb2 17. Qxb2 b6 18. Nf4 {½-½ (35) Egger,T (2255)-Rosino,A (2320) Roncegno 1989}) 12... Re8 $1 {[%emt 0:00:22]} 13. Qb3 {[%emt 0:00:25]} Nb6 {[%emt 0:00:06]} ({But not} 13... c5 14. Nb5 $14) 14. Rfd1 {[%emt 0:00:04][%cal Od4c6]} Qf6 {[%emt 0:00:02]} 15. Bc5 {[%emt 0:00:15]} Be6 {[%emt 0:00:05]} (15... Bg4 $11) 16. Nxe6 $14 {[%emt 0:00:16]} Qxe6 {[%emt 0:00:03]} 17. e3 {[%emt 0:00:52]} (17. Bf3 {simplifies} h5 18. Kg2 h4 19. Qxe6 Rxe6 20. Bd4) 17... Qf5 {[%emt 0:00:28]} (17... Bf8 {simplifies} 18. Bxb6 axb6 19. Qxe6 Rxe6 20. Rxb6 Rxa2 21. Rxb7 Rf6) 18. Bd4 {[%emt 0:00:24]} Bf8 {[%emt 0:00:41]} 19. Rd2 {[%emt 0:00:17]} (19. c4 $16) 19... c5 $11 {[%emt 0:00:13]} 20. e4 {[%emt 0:00:01]} Qe6 $132 {[%emt 0:00:01][%mdl 2048] Black is not holding back} 21. Be3 {[%emt 0:00:56]} Nc4 {[%emt 0:00:04]} 22. Rd3 {[%emt 0:00:10]} b5 {[%emt 0:00:18]} 23. Rbd1 {[%emt 0:00:03]} ({Don't play} 23. Qxb5 Na3 24. Qb7 Nxb1 25. Qxb1 Rab8 $15) 23... Nxe3 {[%emt 0:00:13]} 24. Rxe3 {[%emt 0:00:05]} Qxb3 {[%emt 0:00:12]} 25. axb3 {[%emt 0:00:02]} Bg7 {[%emt 0:00:40]} 26. e5 {[%emt 0:00:03]} Rad8 {[%emt 0:00:02]} 27. Rxd8 {[%emt 0:00:06]} (27. Rde1 $5 {[%cal Rg2c6]}) 27... Rxd8 {[%emt 0:00:01][%mdl 4096] Endgame KRB-KRB} 28. Bc6 {[%emt 0:00:01]} b4 {[%emt 0:00:07]} 29. cxb4 {[%emt 0:00:04]} cxb4 {[%emt 0:00:01]} 30. Bb5 {[%emt 0:00:03]} Bf8 {[%emt 0:00:05]} 31. Bc4 {[%emt 0:00:05]} Kg7 {[%emt 0:00:02]} 32. Kg2 {[%emt 0:00:10]} Bc5 {[%emt 0:00:04]} 33. Rd3 {[%emt 0:00:05]} (33. Rf3 $5 {[%cal Rf3f7]} Rd7 34. Rf6 $14) 33... Rxd3 {[%emt 0:00:06] Weighted Error Value: White=0.14 (very precise) /Black=0.14 (very precise)} 1/2-1/2

[Event "1st Kallai Gabor Memorial Blitz 2022"]
[Site "Budapest"]
[Date "2022.12.01"]
[Round "7.4"]
[White "Motylev, Alexander"]
[Black "Borhy, Marcell"]
[Result "1-0"]
[ECO "B52"]
[WhiteElo "2628"]
[BlackElo "2407"]
[Annotator "TA"]
[PlyCount "169"]
[EventDate "2022.12.01"]
[EventType "blitz"]
[EventCountry "HUN"]
[SourceTitle "playchess.com"]
[Source "ChessBase"]
[SourceQuality "1"]
[TimeControl "300+3"]

{[%evp 13,169,24,14,0,82,23,68,59,70,71,93,92,85,90,105,109,120,116,107,29,118,115,132,113,122,113,126,131,132,57,60,70,71,75,75,75,72,66,68,67,64,58,71,72,73,47,39,47,39,41,47,48,48,54,54,54,54,54,54,46,54,54,54,32,32,32,32,32,32,30,32,30,30,30,30,30,30,30,30,30,30,30,30,37,37,37,37,37,37,37,37,37,44,52,52,66,66,0,0,0,0,0,0,0,0,0,0,0,0,0,0,0,0,0,0,0,0,0,0,0,0,0,0,0,0,0,0,0,0,0,0,0,0,0,0,0,0,0,0,0,0,0,0,0,0,0,0,0,0,0,0,0,0,0,12848,12848,12849,361]} 1. e4 {[%emt 0:00:06]} c5 {[%emt 0:00:04]} 2. Nf3 {[%emt 0:00:01]} d6 {[%emt 0:00:02]} 3. Bb5+ {[%emt 0:00:02]} Bd7 {[%emt 0:00:01]} 4. Bxd7+ {[%emt 0:00:02]} Qxd7 {[%emt 0:00:02]} 5. O-O {[%emt 0:00:02]} Nf6 {[%emt 0:00:01]} 6. Qe2 {[%emt 0:00:01]} Nc6 {[%emt 0:00:22]} 7. c3 {[%emt 0:00:01]} e5 {[%emt 0:00:34]} 8. d4 {[%emt 0:00:04] B52: Sicilian: Moscow Variation with 3...Bd7.} Be7 {[%emt 0:00:12]} (8... cxd4 $11 9. cxd4 Nxd4 10. Nxd4 exd4) 9. Rd1 {[%emt 0:00:33]} ({White should try} 9. d5 $16) 9... cxd4 {[%emt 0:00:11]} 10. cxd4 {[%emt 0:00:01] White is slightly better.} exd4 {[%emt 0:00:13]} 11. Nxd4 {[%emt 0:00:02]} Nxd4 {[%emt 0:00:02]} 12. Rxd4 {[%emt 0:00:01]} O-O {[%emt 0:00:04]} 13. Nc3 {[%emt 0:00:03]} Rfe8 {[%emt 0:00:20]} 14. Bf4 {[%emt 0:00:13]} Qc6 {[%emt 0:00:32]} 15. Rad1 {[%emt 0:00:06]} Rad8 {[%emt 0:00:04]} 16. Qb5 {[%emt 0:00:11] [#]} (16. Qd3 $16) 16... Qc7 $146 {[%emt 0:00:38]} (16... d5 $1 $11 {keeps the balance.}) ({Predecessor:} 16... d5 17. exd5 Qxb5 18. Nxb5 Bc5 19. R4d3 Rxd5 20. Kf1 Rf5 21. Bg3 Ne4 22. Nd4 Nxg3+ 23. hxg3 {0-1 (48) Randazzo,A (2293)-Derraugh,G (2169) Chess.com INT 2020}) 17. h3 {[%emt 0:00:33]} h6 {[%emt 0:00:08]} 18. Qd3 {[%emt 0:00:22] White has more active pieces.} a6 {[%emt 0:00:20]} 19. a3 {[%emt 0:00:37]} (19. Bxd6 $6 Bxd6 20. Rxd6 Rxd6 21. Qxd6 Qxd6 22. Rxd6 Nxe4 23. Nxe4 Rxe4 $11) 19... Qc6 {[%emt 0:00:37]} 20. Kf1 {[%emt 0:00:09]} ({Resist} 20. Bxd6 $6 Rxd6 21. Rxd6 Bxd6 22. Qxd6 Qxd6 23. Rxd6 Nxe4 24. Nxe4 Rxe4 $11) 20... Bf8 {[%emt 0:00:15]} 21. e5 {[%emt 0:00:24]} (21. f3 $16) 21... Nd7 $14 {[%emt 0:00:05]} 22. exd6 {[%emt 0:00:08]} Nc5 $1 {[%emt 0:00:02]} 23. Qc4 {[%emt 0:00:19][%cal Od6d7] Strongly threatening d7!} Ne6 {[%emt 0:00:02] Prevents d7.} 24. Qxc6 {[%emt 0:00:09]} bxc6 {[%emt 0:00:02]} 25. Rc4 {[%emt 0:00:40] [#] aiming for Bh2.} Nxf4 {[%emt 0:00:04]} 26. Rxf4 {[%emt 0:00:01]} Rxd6 {[%emt 0:00:21]} 27. Ra4 {[%emt 0:00:03]} Rb8 {[%emt 0:00:13]} 28. Rxd6 {[%emt 0:00:23]} Bxd6 $16 {[%emt 0:00:02][%mdl 4096] Endgame KRB-KRN} 29. Ne4 {[%emt 0:00:08]} Bf8 {[%emt 0:00:26]} 30. b4 {[%emt 0:00:06]} f5 {[%emt 0:00:12]} 31. Ng3 {[%emt 0:00:07]} c5 {[%emt 0:00:02]} 32. Nxf5 {[%emt 0:00:13]} cxb4 33. axb4 {[%emt 0:00:01]} (33. Rxa6 b3 34. Re6 b2 $19) 33... Rb6 {[%emt 0:00:17]} 34. Ne3 {[%emt 0:00:03]} Rxb4 {[%emt 0:00:04]} 35. Rxa6 {[%emt 0:00:02]} Bc5 {[%emt 0:00:04]} 36. Ke2 {[%emt 0:00:03]} Rb2+ {[%emt 0:00:04]} 37. Kf3 {[%emt 0:00:01]} Rb3 {[%emt 0:00:02]} 38. Rc6 {[%emt 0:00:01]} Bxe3 {[%emt 0:00:03]} 39. fxe3 $14 {[%emt 0:00:02] KR-KR} Kf7 {[%emt 0:00:00]} 40. h4 {[%emt 0:00:01]} h5 {[%emt 0:00:03]} 41. Kf4 {[%emt 0:00:07]} g6 {[%emt 0:00:09]} 42. e4 {[%emt 0:00:05]} Rb5 {[%emt 0:00:01]} 43. Rd6 {[%emt 0:00:11]} Ra5 {[%emt 0:00:05]} 44. g3 {[%emt 0:00:02]} Rb5 {[%emt 0:00:01]} 45. Rd5 {[%emt 0:00:01]} Rb3 {[%emt 0:00:01]} 46. Rd7+ {[%emt 0:00:16]} Ke6 {[%emt 0:00:03]} 47. Rg7 {[%emt 0:00:02] Prevents g5+.} Kf6 {[%emt 0:00:00]} 48. Ra7 {[%emt 0:00:02]} Ke6 {[%emt 0:00:05]} 49. Ra1 {[%emt 0:00:22]} Rc3 {[%emt 0:00:04]} 50. Rf1 {[%emt 0:00:02]} Rb3 {[%emt 0:00:04]} 51. Rf3 {[%emt 0:00:02]} Rb5 {[%emt 0:00:01]} 52. Ra3 {[%emt 0:00:01]} Kf6 {[%emt 0:00:08]} 53. Ra6+ Kf7 54. Rd6 {[%emt 0:00:12]} Ra5 {[%emt 0:00:03]} 55. e5 {[%emt 0:00:07]} (55. Rb6 $14) 55... Ra4+ $11 {[%emt 0:00:00]} 56. Ke3 {[%emt 0:00:01]} Rg4 {[%emt 0:00:05]} 57. Rf6+ {[%emt 0:00:03]} Kg7 {[%emt 0:00:03]} 58. Kf3 {[%emt 0:00:01]} Ra4 {[%emt 0:00:03]} 59. Rf4 {[%emt 0:00:06]} Ra3+ {[%emt 0:00:00]} 60. Kf2 {[%emt 0:00:01]} Ra5 {[%emt 0:00:02]} 61. Re4 {[%emt 0:00:05]} Kf7 {[%emt 0:00:01]} 62. Kf3 {[%emt 0:00:02]} Ke6 {[%emt 0:00:02]} 63. Kf4 {[%emt 0:00:01]} Ra3 {[%emt 0:00:06]} 64. Rb4 {[%emt 0:00:01]} Rc3 {[%emt 0:00:05]} 65. Rb6+ {[%emt 0:00:02]} Kf7 {[%emt 0:00:01]} 66. Rf6+ {[%emt 0:00:01]} Kg7 {[%emt 0:00:01]} 67. Rd6 {[%emt 0:00:08]} Rc4+ {[%emt 0:00:04]} 68. Ke3 {[%emt 0:00:02]} Kf7 {[%emt 0:00:02]} 69. Rf6+ {[%emt 0:00:05]} Kg7 $1 {[%emt 0:00:01]} 70. Kd3 {[%emt 0:00:10]} Ra4 {[%emt 0:00:03]} 71. Rf3 {[%emt 0:00:01]} Rb4 {[%emt 0:00:07]} 72. Ke3 {[%emt 0:00:05]} Ra4 {[%emt 0:00:02]} 73. Rf2 {[%emt 0:00:02]} Ra3+ {[%emt 0:00:03]} 74. Kf4 {[%emt 0:00:01]} Ra4+ {[%emt 0:00:01]} 75. Ke3 {[%emt 0:00:01]} Ra3+ {[%emt 0:00:01]} 76. Ke4 {[%emt 0:00:02]} Rxg3 {[%emt 0:00:03]} 77. e6 {[%emt 0:00:01]} Rg1 {[%emt 0:00:01]} 78. Ke5 {[%emt 0:00:04]} Re1+ {[%emt 0:00:04]} 79. Kd6 {[%emt 0:00:01] [#] And now Rf7+ would win.} Rd1+ {[%emt 0:00:08]} 80. Kc6 {[%emt 0:00:02] Rf7+ is the strong threat.} Re1 {[%emt 0:00:11]} 81. Kd7 {[%emt 0:00:00]} Rd1+ {[%emt 0:00:01]} 82. Ke8 {[%emt 0:00:01] Black must now prevent Rf7+.} Re1 {[%emt 0:00:03]} 83. e7 {[%emt 0:00:01]} Kh6 $2 {[%emt 0:00:04][%mdl 8192]} (83... g5 $11) 84. Kf7 $18 {[%emt 0:00:05]} g5 {[%emt 0:00:05]} 85. Rf6+ {[%emt 0:00:01] Weighted Error Value: White=0.10 (very precise) /Black=0.09 (flawless)} ({And not} 85. e8=B gxh4 86. Bd7 h3 $14) 1-0